[Event "Live Chess"]
[Site "Chess.com"]
[Date "2023.05.20"]
[Round "-"]
[White "EdenHazard8"]
[Black "raminguy"]
[Result "1/2-1/2"]
[WhiteElo "2120"]
[BlackElo "1973"]
[TimeControl "300"]
[EndTime "10:45:19 PDT"]
[Termination "Game drawn by repetition"]

1. e4 {[%clk 0:04:57.4]} 1... e5 {[%clk 0:04:59]} 2. Nf3 {[%clk 0:04:56.4]} 2...
Nc6 {[%clk 0:04:58.3]} 3. Bc4 {[%clk 0:04:56]} 3... Bc5 {[%clk 0:04:57.3]} 4. d3
{[%clk 0:04:54.1]} 4... Nf6 {[%clk 0:04:56.7]} 5. h3 {[%clk 0:04:53.4]} 5... O-O
{[%clk 0:04:56]} 6. Bg5 {[%clk 0:04:50.9]} 6... h6 {[%clk 0:04:54.5]} 7. Bh4
{[%clk 0:04:48.8]} 7... Be7 {[%clk 0:04:54]} 8. O-O {[%clk 0:04:48.1]} 8... d6
{[%clk 0:04:53.5]} 9. Nc3 {[%clk 0:04:47]} 9... Na5 {[%clk 0:04:52.3]} 10. Bb3
{[%clk 0:04:45.4]} 10... Nxb3 {[%clk 0:04:51.4]} 11. axb3 {[%clk 0:04:45.3]}
11... a6 {[%clk 0:04:50.8]} 12. b4 {[%clk 0:04:43.5]} 12... Be6 {[%clk
0:04:47.6]} 13. Re1 {[%clk 0:04:41.1]} 13... c6 {[%clk 0:04:40.1]} 14. Ne2
{[%clk 0:04:31.2]} 14... Nh5 {[%clk 0:04:30.6]} 15. Bxe7 {[%clk 0:04:29.4]}
15... Qxe7 {[%clk 0:04:30.5]} 16. c3 {[%clk 0:04:24.9]} 16... Qf6 {[%clk
0:04:19.7]} 17. Qd2 {[%clk 0:04:17.2]} 17... Bxh3 {[%clk 0:04:15.9]} 18. Ng3
{[%clk 0:04:10.3]} 18... Nxg3 {[%clk 0:04:13.2]} 19. fxg3 {[%clk 0:04:10.2]}
19... Be6 {[%clk 0:04:08.3]} 20. Rf1 {[%clk 0:04:07.2]} 20... Qg6 {[%clk
0:04:04.1]} 21. Kh2 {[%clk 0:04:05.8]} 21... Qh5+ {[%clk 0:04:00.6]} 22. Kg1
{[%clk 0:04:03.4]} 22... Qg4 {[%clk 0:03:56.1]} 23. Kh2 {[%clk 0:04:02.8]} 23...
Qh5+ {[%clk 0:03:47.6]} 24. Kg1 {[%clk 0:04:00.2]} 24... Qg4 {[%clk 0:03:46.8]}
25. Kh2 {[%clk 0:03:59]} 25... Qh5+ {[%clk 0:03:46]} 1/2-1/2

[Event "Live Chess"]
[Site "Chess.com"]
[Date "2023.05.20"]
[Round "-"]
[White "ClassyChameleon"]
[Black "worldchessleaguelive"]
[Result "0-1"]
[WhiteElo "1060"]
[BlackElo "1420"]
[TimeControl "300"]
[EndTime "10:45:32 PDT"]
[Termination "worldchessleaguelive won by checkmate"]

1. e4 {[%clk 0:04:59.2]} 1... d5 {[%clk 0:04:58.4]} 2. exd5 {[%clk 0:04:57.7]}
2... Qxd5 {[%clk 0:04:56.4]} 3. Nf3 {[%clk 0:04:57.1]} 3... Nf6 {[%clk
0:04:54.5]} 4. Bd3 {[%clk 0:04:56.1]} 4... Nc6 {[%clk 0:04:52.9]} 5. O-O {[%clk
0:04:55]} 5... Bg4 {[%clk 0:04:51.1]} 6. c4 {[%clk 0:04:45.8]} 6... Bxf3 {[%clk
0:04:43.4]} 7. cxd5 {[%clk 0:04:40.2]} 7... Bxd1 {[%clk 0:04:42.1]} 8. dxc6
{[%clk 0:04:38.7]} 8... Bh5 {[%clk 0:04:26.5]} 9. cxb7 {[%clk 0:04:37.4]} 9...
Rb8 {[%clk 0:04:25.7]} 10. Ba6 {[%clk 0:04:36.7]} 10... Nd7 {[%clk 0:04:18.9]}
11. d4 {[%clk 0:04:35]} 11... e5 {[%clk 0:04:13.6]} 12. dxe5 {[%clk 0:04:31.2]}
12... Nc5 {[%clk 0:04:05]} 13. Bf4 {[%clk 0:04:19.5]} 13... Nxa6 {[%clk
0:04:00.8]} 14. e6 {[%clk 0:04:16.3]} 14... Rxb7 {[%clk 0:03:49.8]} 15. Re1
{[%clk 0:04:11.1]} 15... Bd6 {[%clk 0:03:47.5]} 16. Bxd6 {[%clk 0:04:08.7]}
16... cxd6 {[%clk 0:03:46.3]} 17. Nc3 {[%clk 0:04:06]} 17... O-O {[%clk
0:03:42.3]} 18. e7 {[%clk 0:04:02.5]} 18... Re8 {[%clk 0:03:40.4]} 19. Nd5
{[%clk 0:04:00.3]} 19... Nb4 {[%clk 0:03:30.4]} 20. Rac1 {[%clk 0:03:51.4]}
20... Nxd5 {[%clk 0:03:14.5]} 21. Rc8 {[%clk 0:03:49.9]} 21... f6 {[%clk
0:03:13.4]} 22. Rxe8+ {[%clk 0:03:48.5]} 22... Bxe8 {[%clk 0:03:11.6]} 23. Re6
{[%clk 0:03:44.4]} 23... Rxe7 {[%clk 0:03:06.9]} 24. Rxd6 {[%clk 0:03:42.8]}
24... Re1# {[%clk 0:03:05.7]} 0-1

[Event "Live Chess"]
[Site "Chess.com"]
[Date "2023.05.20"]
[Round "-"]
[White "LiamClery2020"]
[Black "nigelst"]
[Result "1-0"]
[WhiteElo "2088"]
[BlackElo "1832"]
[TimeControl "300"]
[EndTime "10:45:38 PDT"]
[Termination "LiamClery2020 won by checkmate"]

1. e4 {[%clk 0:04:59.5]} 1... c6 {[%clk 0:04:58.5]} 2. c4 {[%clk 0:04:58.4]}
2... d5 {[%clk 0:04:58]} 3. cxd5 {[%clk 0:04:57.4]} 3... cxd5 {[%clk 0:04:57.2]}
4. exd5 {[%clk 0:04:57.3]} 4... Nf6 {[%clk 0:04:56.4]} 5. Nf3 {[%clk 0:04:56.1]}
5... e6 {[%clk 0:04:53.1]} 6. dxe6 {[%clk 0:04:54.6]} 6... Bxe6 {[%clk
0:04:52.1]} 7. Nc3 {[%clk 0:04:53.5]} 7... Bd6 {[%clk 0:04:51.1]} 8. h3 {[%clk
0:04:52.4]} 8... O-O {[%clk 0:04:49.8]} 9. d4 {[%clk 0:04:50]} 9... Nc6 {[%clk
0:04:48.6]} 10. Bg5 {[%clk 0:04:49.1]} 10... Be7 {[%clk 0:04:46.6]} 11. Bd3
{[%clk 0:04:47.8]} 11... Nd5 {[%clk 0:04:44.9]} 12. Bxe7 {[%clk 0:04:45.3]}
12... Qxe7 {[%clk 0:04:34.3]} 13. O-O {[%clk 0:04:44.5]} 13... Rad8 {[%clk
0:04:23.1]} 14. Re1 {[%clk 0:04:40.5]} 14... Qf6 {[%clk 0:04:20.7]} 15. Ne4
{[%clk 0:04:38.4]} 15... Qf4 {[%clk 0:04:11]} 16. Qc1 {[%clk 0:04:27]} 16...
Qxc1 {[%clk 0:04:08.6]} 17. Raxc1 {[%clk 0:04:26.9]} 17... Ndb4 {[%clk
0:03:59.2]} 18. Bb1 {[%clk 0:04:13.1]} 18... Nxd4 {[%clk 0:03:54.1]} 19. Nxd4
{[%clk 0:04:12.1]} 19... Rxd4 {[%clk 0:03:52.1]} 20. Nc5 {[%clk 0:04:11.6]}
20... Bxa2 {[%clk 0:03:41.4]} 21. Bxa2 {[%clk 0:04:06.6]} 21... Nxa2 {[%clk
0:03:39.4]} 22. Ra1 {[%clk 0:04:01.7]} 22... Nb4 {[%clk 0:03:37.8]} 23. Rxa7
{[%clk 0:03:56.6]} 23... Rd2 {[%clk 0:03:35.5]} 24. Rxb7 {[%clk 0:03:53.1]}
24... Rxb2 {[%clk 0:03:23.2]} 25. Ree7 {[%clk 0:03:23.7]} 25... Rc2 {[%clk
0:03:06]} 26. Nd7 {[%clk 0:03:17.5]} 26... Nd5 {[%clk 0:02:57]} 27. Re5 {[%clk
0:03:13.7]} 27... Rc7 {[%clk 0:02:21.3]} 28. Rxc7 {[%clk 0:03:06.9]} 28... Nxc7
{[%clk 0:02:19.7]} 29. Nxf8 {[%clk 0:03:06.3]} 29... Kxf8 {[%clk 0:02:17.4]} 30.
f4 {[%clk 0:03:04.5]} 30... Ne6 {[%clk 0:02:15.5]} 31. f5 {[%clk 0:03:00.4]}
31... Nd4 {[%clk 0:02:11.4]} 32. Kf2 {[%clk 0:02:58.5]} 32... f6 {[%clk
0:02:04.9]} 33. Ra5 {[%clk 0:02:56.5]} 33... g6 {[%clk 0:01:56.7]} 34. g4 {[%clk
0:02:55.2]} 34... Kg7 {[%clk 0:01:50.4]} 35. Rd5 {[%clk 0:02:53]} 35... Nc2
{[%clk 0:01:47]} 36. Rd7+ {[%clk 0:02:48.8]} 36... Kh6 {[%clk 0:01:45.6]} 37.
Kg3 {[%clk 0:02:44.5]} 37... gxf5 {[%clk 0:01:43.1]} 38. gxf5 {[%clk 0:02:42.4]}
38... Kg5 {[%clk 0:01:42.2]} 39. Rxh7 {[%clk 0:02:38.8]} 39... Kxf5 {[%clk
0:01:40.6]} 40. Ra7 {[%clk 0:02:37.7]} 40... Kg6 {[%clk 0:01:37.4]} 41. Ra4
{[%clk 0:02:34.2]} 41... Ne3 {[%clk 0:01:35.8]} 42. Kf3 {[%clk 0:02:26.5]} 42...
Nd5 {[%clk 0:01:21.2]} 43. Ra5 {[%clk 0:02:18.3]} 43... Ne7 {[%clk 0:01:17.5]}
44. Kg4 {[%clk 0:02:14.6]} 44... f5+ {[%clk 0:01:14.7]} 45. Kf4 {[%clk
0:02:13.9]} 45... Kf6 {[%clk 0:01:09.9]} 46. Ra6+ {[%clk 0:02:11.2]} 46... Kf7
{[%clk 0:01:04.9]} 47. Ke5 {[%clk 0:02:07.4]} 47... f4 {[%clk 0:00:41.2]} 48.
Kxf4 {[%clk 0:01:58.9]} 48... Nd5+ {[%clk 0:00:39.6]} 49. Kg5 {[%clk 0:01:55]}
49... Nc3 {[%clk 0:00:37.5]} 50. Ra7+ {[%clk 0:01:52.3]} 50... Kf8 {[%clk
0:00:31.6]} 51. h4 {[%clk 0:01:47.3]} 51... Ne4+ {[%clk 0:00:30.7]} 52. Kg6
{[%clk 0:01:40.2]} 52... Nc5 {[%clk 0:00:23.1]} 53. h5 {[%clk 0:01:36.6]} 53...
Ne6 {[%clk 0:00:22.1]} 54. Kf6 {[%clk 0:01:27.7]} 54... Nf4 {[%clk 0:00:18.9]}
55. Ra8# {[%clk 0:01:26.7]} 1-0

[Event "Live Chess"]
[Site "Chess.com"]
[Date "2023.05.20"]
[Round "-"]
[White "zdanevych"]
[Black "NAZRIZ1977"]
[Result "0-1"]
[WhiteElo "1544"]
[BlackElo "2147"]
[TimeControl "300"]
[EndTime "10:45:39 PDT"]
[Termination "NAZRIZ1977 won by resignation"]

1. d4 {[%clk 0:04:59]} 1... Nf6 {[%clk 0:04:58.4]} 2. c4 {[%clk 0:04:57.8]} 2...
c5 {[%clk 0:04:57.8]} 3. d5 {[%clk 0:04:56.8]} 3... b5 {[%clk 0:04:57.4]} 4. Nc3
{[%clk 0:04:52.4]} 4... a6 {[%clk 0:04:54.7]} 5. e4 {[%clk 0:04:51.2]} 5... d6
{[%clk 0:04:54.2]} 6. a3 {[%clk 0:04:49.3]} 6... b4 {[%clk 0:04:51.6]} 7. axb4
{[%clk 0:04:47.9]} 7... cxb4 {[%clk 0:04:51.1]} 8. Nce2 {[%clk 0:04:35]} 8...
Nxe4 {[%clk 0:04:50]} 9. Nf3 {[%clk 0:04:30.7]} 9... g6 {[%clk 0:04:48.5]} 10.
Ng3 {[%clk 0:04:23.7]} 10... Nf6 {[%clk 0:04:46]} 11. b3 {[%clk 0:04:21.2]}
11... Bg7 {[%clk 0:04:45.1]} 12. Bb2 {[%clk 0:04:20.3]} 12... O-O {[%clk
0:04:44.7]} 13. Rb1 {[%clk 0:04:18.5]} 13... Bg4 {[%clk 0:04:43.2]} 14. Be2
{[%clk 0:04:17.3]} 14... Nbd7 {[%clk 0:04:42.1]} 15. h3 {[%clk 0:04:15.8]} 15...
Bxf3 {[%clk 0:04:41.2]} 16. Bxf3 {[%clk 0:04:15.7]} 16... Nc5 {[%clk 0:04:40.8]}
17. O-O {[%clk 0:04:09.8]} 17... a5 {[%clk 0:04:40.1]} 18. Qd2 {[%clk
0:04:04.9]} 18... Nxb3 {[%clk 0:04:38.5]} 19. Qc2 {[%clk 0:04:00.9]} 19... Nc5
{[%clk 0:04:37.2]} 20. Ne4 {[%clk 0:03:58]} 20... Nfxe4 {[%clk 0:04:35.1]} 21.
Bxe4 {[%clk 0:03:57.9]} 21... Bxb2 {[%clk 0:04:33.9]} 22. Rxb2 {[%clk
0:03:56.2]} 22... Nxe4 {[%clk 0:04:32]} 23. Qxe4 {[%clk 0:03:56.1]} 23... Qb6
{[%clk 0:04:25]} 24. Qxe7 {[%clk 0:03:52.1]} 24... a4 {[%clk 0:04:24.4]} 25. Qe3
{[%clk 0:03:48.5]} 25... b3 {[%clk 0:04:22]} 26. Ra1 {[%clk 0:03:45.6]} 26...
Qb4 {[%clk 0:04:19.1]} 27. Qd2 {[%clk 0:03:38.4]} 27... Qxd2 {[%clk 0:04:15.9]}
28. Rxd2 {[%clk 0:03:38.3]} 28... a3 {[%clk 0:04:15.7]} 29. Rd3 {[%clk
0:03:35.6]} 29... b2 {[%clk 0:04:14.3]} 0-1

[Event "Live Chess"]
[Site "Chess.com"]
[Date "2023.05.20"]
[Round "-"]
[White "Leonid_Starozhilov"]
[Black "BogdanBeleiUkraine"]
[Result "1-0"]
[WhiteElo "2659"]
[BlackElo "1203"]
[TimeControl "300"]
[EndTime "10:45:40 PDT"]
[Termination "Leonid_Starozhilov won by resignation"]

1. e4 {[%clk 0:04:58.8]} 1... e5 {[%clk 0:04:58.4]} 2. Nf3 {[%clk 0:04:57.3]}
2... Nc6 {[%clk 0:04:56.5]} 3. Bc4 {[%clk 0:04:56.9]} 3... Bc5 {[%clk 0:04:55]}
4. O-O {[%clk 0:04:55.6]} 4... h6 {[%clk 0:04:52.1]} 5. c3 {[%clk 0:04:54.5]}
5... Nge7 {[%clk 0:04:46.3]} 6. d4 {[%clk 0:04:53.3]} 6... exd4 {[%clk
0:04:44.5]} 7. cxd4 {[%clk 0:04:52.7]} 7... Bb6 {[%clk 0:04:43.3]} 8. Nc3 {[%clk
0:04:47.7]} 8... a6 {[%clk 0:04:36.5]} 9. d5 {[%clk 0:04:42.2]} 9... Na5 {[%clk
0:04:31.4]} 10. Be2 {[%clk 0:04:40.9]} 10... c5 {[%clk 0:04:12.5]} 11. d6 {[%clk
0:04:34.6]} 11... Ng6 {[%clk 0:04:07.2]} 12. Nd5 {[%clk 0:04:32.7]} 12... O-O
{[%clk 0:04:01.6]} 13. Be3 {[%clk 0:04:28.9]} 13... Nc6 {[%clk 0:03:51.4]} 14.
Rc1 {[%clk 0:04:26]} 14... Nce5 {[%clk 0:03:49.6]} 15. Nxe5 {[%clk 0:04:22.5]}
15... Nxe5 {[%clk 0:03:48]} 16. f4 {[%clk 0:04:22.1]} 16... Ng6 {[%clk
0:03:40.8]} 17. e5 {[%clk 0:04:15.3]} 17... Qh4 {[%clk 0:03:29.3]} 18. Nxb6
{[%clk 0:03:57.7]} 1-0

[Event "Live Chess"]
[Site "Chess.com"]
[Date "2023.05.20"]
[Round "-"]
[White "YF22Raptor"]
[Black "luckywookie"]
[Result "1-0"]
[WhiteElo "1015"]
[BlackElo "729"]
[TimeControl "300"]
[EndTime "10:45:41 PDT"]
[Termination "YF22Raptor won by resignation"]

1. e4 {[%clk 0:04:58.6]} 1... c6 {[%clk 0:04:55.3]} 2. Nf3 {[%clk 0:04:57.9]}
2... d5 {[%clk 0:04:52.4]} 3. Nc3 {[%clk 0:04:57.3]} 3... Bg4 {[%clk 0:04:47.2]}
4. exd5 {[%clk 0:04:55.4]} 4... Bxf3 {[%clk 0:04:43.4]} 5. Qxf3 {[%clk
0:04:54.1]} 5... Nf6 {[%clk 0:04:41.2]} 6. dxc6 {[%clk 0:04:52.7]} 6... Nxc6
{[%clk 0:04:38.7]} 7. Bb5 {[%clk 0:04:51.2]} 7... Rc8 {[%clk 0:04:24.5]} 8.
Bxc6+ {[%clk 0:04:49.5]} 8... Rxc6 {[%clk 0:04:22.3]} 9. d3 {[%clk 0:04:47.9]}
9... Re6+ {[%clk 0:04:17.4]} 10. Be3 {[%clk 0:04:46.1]} 10... g6 {[%clk
0:03:50.3]} 11. Qxb7 {[%clk 0:04:43.7]} 11... Ng4 {[%clk 0:03:45]} 12. Qxa7
{[%clk 0:04:35.7]} 12... Nxe3 {[%clk 0:03:43.3]} 13. fxe3 {[%clk 0:04:34.2]}
13... Rxe3+ {[%clk 0:03:42]} 14. Qxe3 {[%clk 0:04:32.6]} 14... Bg7 {[%clk
0:03:38.1]} 15. O-O-O {[%clk 0:04:30.3]} 15... O-O {[%clk 0:03:37.4]} 16. Kb1
{[%clk 0:04:23.9]} 16... Bxc3 {[%clk 0:03:35.7]} 17. bxc3 {[%clk 0:04:22.7]}
17... Qb8+ {[%clk 0:03:32.3]} 18. Ka1 {[%clk 0:04:19.9]} 18... Qb7 {[%clk
0:03:26.6]} 19. Rb1 {[%clk 0:04:17.1]} 19... Qxg2 {[%clk 0:03:23]} 20. Qf3
{[%clk 0:04:12.6]} 20... Qxc2 {[%clk 0:03:20.7]} 21. d4 {[%clk 0:04:06.2]} 21...
Rc8 {[%clk 0:03:16.3]} 22. Qe3 {[%clk 0:04:02.2]} 22... e6 {[%clk 0:03:14.1]}
23. Rb3 {[%clk 0:03:57.5]} 23... Ra8 {[%clk 0:03:04.5]} 24. Rb2 {[%clk
0:03:43.4]} 24... Qa4 {[%clk 0:02:58.1]} 25. Rc1 {[%clk 0:03:40.1]} 25... Qa5
{[%clk 0:02:42.6]} 26. Rcc2 {[%clk 0:03:38.3]} 26... Qd5 {[%clk 0:02:33.3]} 27.
Qe5 {[%clk 0:03:31.9]} 27... Qh1+ {[%clk 0:02:24.8]} 28. Rb1 {[%clk 0:03:30.7]}
28... Qc6 {[%clk 0:02:15.6]} 29. Rd1 {[%clk 0:03:22.6]} 29... Qc4 {[%clk
0:02:03.1]} 30. Rdd2 {[%clk 0:03:15]} 30... Qf1+ {[%clk 0:01:57.7]} 31. Kb2
{[%clk 0:03:12.4]} 31... Qc4 {[%clk 0:01:41.2]} 32. a3 {[%clk 0:02:57.3]} 32...
Qc8 {[%clk 0:01:10.2]} 33. Qc5 {[%clk 0:02:48.5]} 33... Qb7+ {[%clk 0:01:05.8]}
34. Ka2 {[%clk 0:02:45.9]} 34... Qb8 {[%clk 0:00:53.5]} 35. Rb2 {[%clk
0:02:44.2]} 35... Qf4 {[%clk 0:00:45.9]} 36. Rf2 {[%clk 0:02:35.4]} 36... Rxa3+
{[%clk 0:00:25.8]} 37. Qxa3 {[%clk 0:02:32.9]} 37... Qxf2 {[%clk 0:00:16.9]} 38.
Rxf2 {[%clk 0:02:31.3]} 1-0

[Event "Live Chess"]
[Site "Chess.com"]
[Date "2023.05.20"]
[Round "-"]
[White "Outspanner"]
[Black "stevefairhurst"]
[Result "1-0"]
[WhiteElo "1543"]
[BlackElo "585"]
[TimeControl "300"]
[EndTime "10:45:43 PDT"]
[Termination "Outspanner won by resignation"]

1. d4 {[%clk 0:04:57]} 1... e5 {[%clk 0:04:59.2]} 2. dxe5 {[%clk 0:04:54.1]}
2... Nc6 {[%clk 0:04:58.1]} 3. Nf3 {[%clk 0:04:43]} 3... Qe7 {[%clk 0:04:57.4]}
4. Bg5 {[%clk 0:04:34.5]} 4... Qb4+ {[%clk 0:04:54.2]} 5. Bd2 {[%clk 0:04:32.5]}
5... Qxb2 {[%clk 0:04:53.1]} 6. Bc3 {[%clk 0:04:31.9]} 6... Bb4 {[%clk 0:04:51]}
7. Bxb4 {[%clk 0:03:41.9]} 7... Qxa1 {[%clk 0:04:44.4]} 8. Bc3 {[%clk
0:03:25.9]} 8... Qxa2 {[%clk 0:04:41.5]} 9. e3 {[%clk 0:03:25.4]} 9... Qe6
{[%clk 0:04:28.8]} 10. Bd3 {[%clk 0:03:02.2]} 10... d6 {[%clk 0:04:10.7]} 11.
exd6 {[%clk 0:02:53.1]} 11... Nf6 {[%clk 0:04:07.5]} 12. dxc7 {[%clk 0:02:40.6]}
12... O-O {[%clk 0:04:01.2]} 13. O-O {[%clk 0:02:31.9]} 13... Bd7 {[%clk
0:03:56.3]} 14. Ng5 {[%clk 0:02:08.3]} 14... Qd6 {[%clk 0:03:45.3]} 15. Bxh7+
{[%clk 0:02:04.8]} 15... Nxh7 {[%clk 0:03:44.1]} 16. Qxd6 {[%clk 0:02:02.7]}
16... Nxg5 {[%clk 0:03:41.4]} 17. Qxd7 {[%clk 0:01:53.7]} 1-0

[Event "Live Chess"]
[Site "Chess.com"]
[Date "2023.05.20"]
[Round "-"]
[White "mattihelenius2"]
[Black "GMHarry-youtube"]
[Result "0-1"]
[WhiteElo "443"]
[BlackElo "2152"]
[TimeControl "300"]
[EndTime "10:45:52 PDT"]
[Termination "GMHarry-youtube won by checkmate"]

1. d4 {[%clk 0:04:57.2]} 1... e5 {[%clk 0:04:58.5]} 2. e3 {[%clk 0:04:54]} 2...
d5 {[%clk 0:04:56.2]} 3. Nf3 {[%clk 0:04:45]} 3... e4 {[%clk 0:04:54.7]} 4. Ne5
{[%clk 0:04:43.6]} 4... f6 {[%clk 0:04:49.7]} 5. Ng4 {[%clk 0:04:26.7]} 5... h5
{[%clk 0:04:48.2]} 6. Nc3 {[%clk 0:04:11.9]} 6... Bxg4 {[%clk 0:04:45.7]} 7. f3
{[%clk 0:04:07.3]} 7... exf3 {[%clk 0:04:44.2]} 8. gxf3 {[%clk 0:04:06.3]} 8...
Bf5 {[%clk 0:04:24.8]} 9. Bd3 {[%clk 0:03:59.4]} 9... Qd7 {[%clk 0:04:22.3]} 10.
e4 {[%clk 0:03:47.7]} 10... dxe4 {[%clk 0:04:21.1]} 11. fxe4 {[%clk 0:03:43.6]}
11... Bg4 {[%clk 0:04:20.1]} 12. Bb5 {[%clk 0:03:29.3]} 12... c6 {[%clk
0:04:18.3]} 13. Qd3 {[%clk 0:03:25.1]} 13... cxb5 {[%clk 0:04:12]} 14. Nxb5
{[%clk 0:03:22]} 14... Nc6 {[%clk 0:04:07.7]} 15. d5 {[%clk 0:03:17.8]} 15...
Ne5 {[%clk 0:04:05.9]} 16. Qd4 {[%clk 0:03:15.9]} 16... Qxb5 {[%clk 0:04:04.8]}
17. Rg1 {[%clk 0:03:11]} 17... Qe2# {[%clk 0:04:03.7]} 0-1

[Event "Live Chess"]
[Site "Chess.com"]
[Date "2023.05.20"]
[Round "-"]
[White "lateforthesky"]
[Black "booktrunk"]
[Result "1-0"]
[WhiteElo "2073"]
[BlackElo "1333"]
[TimeControl "300"]
[EndTime "10:46:01 PDT"]
[Termination "lateforthesky won by checkmate"]

1. e4 {[%clk 0:04:58.6]} 1... d5 {[%clk 0:04:59.9]} 2. exd5 {[%clk 0:04:56.8]}
2... Qxd5 {[%clk 0:04:58.1]} 3. Nc3 {[%clk 0:04:55.4]} 3... Qe5+ {[%clk
0:04:57.3]} 4. Be2 {[%clk 0:04:48.9]} 4... c6 {[%clk 0:04:55.6]} 5. d4 {[%clk
0:04:47.1]} 5... Qf6 {[%clk 0:04:53.8]} 6. Nf3 {[%clk 0:04:45.6]} 6... e6 {[%clk
0:04:52.5]} 7. O-O {[%clk 0:04:43.2]} 7... h6 {[%clk 0:04:49.6]} 8. Re1 {[%clk
0:04:38.9]} 8... Bd6 {[%clk 0:04:48.3]} 9. Bc4 {[%clk 0:04:14.1]} 9... Ne7
{[%clk 0:04:46.5]} 10. Ne4 {[%clk 0:04:10.4]} 10... Qg6 {[%clk 0:04:31]} 11.
Nxd6+ {[%clk 0:04:09.3]} 11... Kd7 {[%clk 0:04:23.3]} 12. Nxc8 {[%clk
0:04:02.2]} 12... Nxc8 {[%clk 0:04:21.2]} 13. Bd3 {[%clk 0:03:59.6]} 13... Qf6
{[%clk 0:04:19.5]} 14. c4 {[%clk 0:03:57.7]} 14... Ne7 {[%clk 0:04:18.3]} 15. d5
{[%clk 0:03:48.1]} 15... cxd5 {[%clk 0:04:16.8]} 16. cxd5 {[%clk 0:03:46.4]}
16... Nxd5 {[%clk 0:04:15.1]} 17. Bc4 {[%clk 0:03:39.2]} 17... Kc7 {[%clk
0:04:12.3]} 18. Bxd5 {[%clk 0:03:37.3]} 18... exd5 {[%clk 0:04:11.5]} 19. Qxd5
{[%clk 0:03:35.6]} 19... Rd8 {[%clk 0:04:10.3]} 20. Bf4+ {[%clk 0:03:18.8]}
20... Kb6 {[%clk 0:04:05.8]} 21. Qb3+ {[%clk 0:03:02.4]} 21... Ka6 {[%clk
0:04:04.6]} 22. Qa4+ {[%clk 0:02:55.1]} 22... Kb6 {[%clk 0:04:03.3]} 23. Rac1
{[%clk 0:02:52.4]} 23... a5 {[%clk 0:03:56.3]} 24. Re3 {[%clk 0:02:42.4]} 24...
Nc6 {[%clk 0:03:53.5]} 25. Rb3+ {[%clk 0:02:38.3]} 25... Ka6 {[%clk 0:03:51.5]}
26. Qb5+ {[%clk 0:02:35.1]} 26... Ka7 {[%clk 0:03:50.2]} 27. Qxb7# {[%clk
0:02:33.7]} 1-0

[Event "Live Chess"]
[Site "Chess.com"]
[Date "2023.05.20"]
[Round "-"]
[White "wadsy27"]
[Black "Wlzard-1"]
[Result "1-0"]
[WhiteElo "2587"]
[BlackElo "986"]
[TimeControl "300"]
[EndTime "10:46:01 PDT"]
[Termination "wadsy27 won by checkmate"]

1. c4 {[%clk 0:04:57.6]} 1... Nf6 {[%clk 0:04:56.2]} 2. Nf3 {[%clk 0:04:56.9]}
2... g6 {[%clk 0:04:53.8]} 3. Nc3 {[%clk 0:04:55.9]} 3... Bg7 {[%clk 0:04:52.5]}
4. g3 {[%clk 0:04:55.2]} 4... O-O {[%clk 0:04:49.6]} 5. Bg2 {[%clk 0:04:54.7]}
5... d6 {[%clk 0:04:48.3]} 6. d4 {[%clk 0:04:53.7]} 6... b6 {[%clk 0:04:44.9]}
7. Ng5 {[%clk 0:04:47.6]} 7... c6 {[%clk 0:04:35.3]} 8. h4 {[%clk 0:04:46.7]}
8... h5 {[%clk 0:04:32.7]} 9. e4 {[%clk 0:04:37.7]} 9... Bg4 {[%clk 0:04:26.8]}
10. f3 {[%clk 0:04:35.7]} 10... Bd7 {[%clk 0:04:17.6]} 11. Be3 {[%clk
0:04:34.8]} 11... Na6 {[%clk 0:04:07]} 12. Qd2 {[%clk 0:04:33.5]} 12... Nb4
{[%clk 0:04:04.7]} 13. a3 {[%clk 0:04:31.2]} 13... Na6 {[%clk 0:04:01.5]} 14.
O-O-O {[%clk 0:04:30.4]} 14... e6 {[%clk 0:03:53.3]} 15. e5 {[%clk 0:04:25.9]}
15... Ne8 {[%clk 0:03:37.3]} 16. g4 {[%clk 0:04:21.9]} 16... d5 {[%clk
0:03:29.1]} 17. gxh5 {[%clk 0:04:20.2]} 17... gxh5 {[%clk 0:03:22.5]} 18. Qc2
{[%clk 0:04:12.6]} 18... f6 {[%clk 0:03:17.9]} 19. Qh7# {[%clk 0:04:10.5]} 1-0

[Event "Live Chess"]
[Site "Chess.com"]
[Date "2023.05.20"]
[Round "-"]
[White "MrDodgy"]
[Black "LL220284LL"]
[Result "1-0"]
[WhiteElo "2330"]
[BlackElo "2396"]
[TimeControl "300"]
[EndTime "10:46:06 PDT"]
[Termination "MrDodgy won by resignation"]

1. e4 {[%clk 0:04:58.3]} 1... c5 {[%clk 0:04:58.8]} 2. Nf3 {[%clk 0:04:57.1]}
2... Nc6 {[%clk 0:04:58]} 3. Bb5 {[%clk 0:04:55.3]} 3... e6 {[%clk 0:04:56.5]}
4. Bxc6 {[%clk 0:04:54.1]} 4... bxc6 {[%clk 0:04:54.3]} 5. O-O {[%clk
0:04:53.8]} 5... Ne7 {[%clk 0:04:51.4]} 6. e5 {[%clk 0:04:50.8]} 6... Ng6 {[%clk
0:04:49.8]} 7. Re1 {[%clk 0:04:48.5]} 7... Be7 {[%clk 0:04:47.1]} 8. d4 {[%clk
0:04:43.7]} 8... cxd4 {[%clk 0:04:45.9]} 9. Qxd4 {[%clk 0:04:43.6]} 9... O-O
{[%clk 0:04:44.6]} 10. Nc3 {[%clk 0:04:42.6]} 10... f6 {[%clk 0:04:43.4]} 11.
Ne4 {[%clk 0:04:29.1]} 11... fxe5 {[%clk 0:04:40.7]} 12. Nxe5 {[%clk 0:04:27.1]}
12... Nxe5 {[%clk 0:04:39.8]} 13. Qxe5 {[%clk 0:04:25.9]} 13... d5 {[%clk
0:04:39.2]} 14. Ng5 {[%clk 0:04:21.3]} 14... Bd6 {[%clk 0:04:28.8]} 15. Qe2
{[%clk 0:04:10.9]} 15... e5 {[%clk 0:04:24.9]} 16. Qh5 {[%clk 0:04:01.6]} 16...
h6 {[%clk 0:04:21]} 17. Nf3 {[%clk 0:03:59.1]} 17... e4 {[%clk 0:04:15]} 18. Nd4
{[%clk 0:03:39.3]} 18... Be5 {[%clk 0:03:55.6]} 19. Nxc6 {[%clk 0:03:29.1]}
19... Bxh2+ {[%clk 0:03:51]} 20. Qxh2 {[%clk 0:03:24.1]} 20... Qb6 {[%clk
0:03:47.3]} 21. Ne7+ {[%clk 0:03:13.8]} 21... Kh7 {[%clk 0:03:39.6]} 22. Be3
{[%clk 0:03:01.7]} 1-0